fUSD/lending_fUSD_20251027
["ID","MTS","AMOUNT","RATE_DAILY","PERIOD"]
[392507981,1761588631989,-500.0,0.00027593,2]
[392507982,1761588631999,-506.24944518,0.00027593,2]
[392507983,1761588632009,-500.0,0.00027593,2]
[392507984,1761588632018,-500.0,0.00027593,2]
[392507985,1761588632028,-500.0,0.00027593,2]
[392507986,1761588632037,-500.0,0.00027593,2]
[392507987,1761588632046,-500.0,0.00027593,2]
[392507989,1761588632056,-320.82591658,0.00027593,2]
[392507991,1761588632066,-669.67445696,0.00027594,2]
[392507993,1761588632083,-780.71527075,0.00027594,2]
[392507996,1761588632095,-402.03027229,0.00027594,2]
[392507998,1761588632103,-198.56,0.00027594,2]
[392508000,1761588632112,-500.0,0.00027629,3]
[392508002,1761588632123,-82.08349726,0.00027702,14]
[392508004,1761588632135,-246.51650274,0.00027702,14]
[392508005,1761588632144,-3400.0,0.00027703,2]
[392508007,1761588632155,-200.0,0.00027717,2]
[392508009,1761588632165,-5727.19160654,0.000278,2]
[392508011,1761588632176,-605.71259571,0.000278,2]
[392508014,1761588632187,-3115.61143538,0.000278,2]
[392508016,1761588632198,-1644.61896634,0.000278,2]
[392508018,1761588632209,-387.11639996,0.000278,2]
[392508021,1761588632227,-1440.18975519,0.000278,2]
[392508023,1761588632238,-3917.99484854,0.000278,2]
[392508025,1761588632247,-1000.0,0.00027888,2]
[392508027,1761588632256,-3519.60515144,0.00027923,2]
[392508030,1761588632275,-1480.39484856,0.00027923,2]
[392508032,1761588632284,-804.65967364,0.00027951,2]
[392508034,1761588632294,-14.9454778,0.00027976,14]
[392508183,1761588637494,-424.53621295,0.00027592,2]
[392508184,1761588637504,-313.6545222,0.00027976,14]
[392508185,1761588637516,-708.43565866,0.00027991,2]
[392508186,1761588637549,-291.56434134,0.00027991,2]
[392508187,1761588637558,-394.937,0.00028025,18]
[392508188,1761588637567,-5485.13,0.00028203,2]
[392508189,1761588637576,-150.99,0.00028203,2]
[392508190,1761588637586,-4798.61264467,0.00028203,2]
[392508191,1761588637657,-495.1497182,0.00028203,2]
[392508192,1761588637668,-2752.70491491,0.00028203,2]
[392508193,1761588637679,-1953.52272222,0.00028203,2]
[392508194,1761588637689,-999.99,0.00028203,2]
[392508195,1761588637698,-1449.92,0.00028203,2]
[392508196,1761588637707,-746.62469717,0.00028203,2]
[392508197,1761588637789,-2738.70825266,0.00028203,2]
[392508198,1761588637800,-1052.681047,0.00028203,2]
[392508199,1761588637819,-398.19476202,0.00028203,2]
[392508230,1761588639794,-880.0301178,0.00028203,2]
[392508231,1761588639810,-3268.05224128,0.00028203,2]
[392508233,1761588639821,-915.69888207,0.00028203,2]
[392508235,1761588639831,-1357.23,0.00028203,2]
[392508237,1761588639840,-718.42016602,0.00028203,2]
[392508239,1761588639854,-1633.02983398,0.00028203,2]
[392508241,1761588639864,-6542.2369058,0.00028203,2]
[392508244,1761588639876,-2822.21558554,0.00028203,2]
[392508246,1761588639887,-329.0207687,0.00028203,2]
[392508248,1761588639899,-306.51673996,0.00028203,2]
[392508250,1761588639909,-1091.45,0.00028203,2]
[392508252,1761588639919,-774.9872601,0.00028203,2]
[392508253,1761588640092,-391.1427399,0.00028203,2]
[392508254,1761588640102,-87.50045774,0.00028203,2]
[392508255,1761588640147,-9912.48954226,0.00028203,2]
[392508256,1761588640158,-1942.73,0.00028203,2]
[392508257,1761588640167,-804.65967364,0.00028245,2]
[392508258,1761588640177,-328.62126583,0.0002825,14]
[392508259,1761588640186,-500.0,0.00028273,2]
[392508260,1761588640195,-697.12,0.00028335,2]
[392508261,1761588640205,-697.12,0.00028335,2]
[392508263,1761588640214,-697.12,0.00028335,2]
[392508265,1761588640223,-697.12,0.00028335,2]
[392508267,1761588640232,-804.65967364,0.00028545,2]
[392508269,1761588640241,-152.0,0.00028732,3]
[392508271,1761588640251,-152.0,0.00028732,3]
[392508273,1761588640260,-152.0,0.00028732,3]
[392508275,1761588640269,-209.94210905,0.00028732,3]
[392508276,1761588640278,-152.0,0.00028732,3]
[392508277,1761588640288,-152.0,0.00028732,3]
[392508278,1761588640297,-158.11845397,0.00028732,3]
[392508279,1761588640307,-161.34484438,0.00028732,3]
[392508280,1761588640316,-152.0,0.00028732,3]
[392508281,1761588640325,-152.0,0.00028732,3]
[392508282,1761588640334,-152.0,0.00028732,3]
[392508283,1761588640344,-152.0,0.00028732,3]
[392508284,1761588640354,-152.0,0.00028732,3]
[392508285,1761588640363,-152.0,0.00028732,3]
[392508286,1761588640372,-152.0,0.00028732,3]
[392508287,1761588640381,-152.0,0.00028732,3]
[392508288,1761588640391,-1000.0,0.00028821,2]
[392508289,1761588640400,-1000.0,0.00028895,2]
[392508290,1761588640409,-1000.0,0.00028895,2]
[392508291,1761588640418,-500.0,0.00029008,28]
[392508292,1761588640427,-804.65967364,0.00029008,2]
[392508293,1761588640436,-210.3306579,0.00029129,2]
[392508294,1761588640445,-161.79682532,0.00029159,2]
[392508295,1761588640454,-500.0,0.00029159,2]
[392508296,1761588640464,-312.52406274,0.00029159,2]
[392508297,1761588640473,-598.69735266,0.00029159,2]
[392508298,1761588640483,-6624.0,0.0002916,2]
[392508299,1761588640492,-3490.0,0.0002916,2]
[392508300,1761588640502,-804.65967364,0.0002916,2]
[392508301,1761588640511,-558.0,0.0002916,2]
[392508302,1761588640521,-6461.0,0.0002916,2]
[392508303,1761588640530,-697.12,0.00029294,2]
[392508304,1761588640539,-697.12,0.00029294,2]
[392508305,1761588640548,-697.12,0.00029294,2]
[392508306,1761588640558,-1000.0,0.00029306,2]
[392508307,1761588640568,-1000.0,0.00029306,2]
[392508308,1761588640578,-804.65967367,0.00029351,2]
[392508309,1761588640587,-495.05307951,0.00029368,2]
[392508310,1761588640596,-4559.9878765,0.000295,2]
[392508311,1761588640606,-1612.0574098,0.00029567,2]
[392508312,1761588640616,-4694.3822356,0.00029567,2]
[392508313,1761588640627,-153.6380692,0.00029567,2]
[392508314,1761588640636,-6393.9810028,0.00029567,2]
[392508317,1761588642675,-701.8909791,0.00029567,2]
[392508320,1761588643031,-1.48323167,0.00029567,2]
[392508321,1761588643043,-2845.49373633,0.00029567,2]
[392508322,1761588643052,-165.48,0.00029589,2]
[392508323,1761588643061,-994.78388121,0.00029618,2]
[392508324,1761588643070,-1530.85441595,0.000297,2]
[392508332,1761588645620,-969.14558405,0.000297,2]
[392508333,1761588645630,-305.84131448,0.000297,2]
[392508334,1761588645642,-467.88428273,0.000297,2]
[392508335,1761588645675,-226.27440279,0.000297,2]
[392508336,1761588645684,-1000.0,0.00029717,2]
[392508337,1761588645694,-1000.0,0.00029717,2]
[392508338,1761588645705,-300.0,0.00029726,2]
[392508339,1761588645715,-113.12874369,0.00029726,2]
[392508340,1761588645727,-371.28125631,0.00029726,2]
[392508341,1761588645736,-337.12,0.00029726,2]
[392508342,1761588645747,-150.51,0.00029726,2]
[392508343,1761588645757,-156.05,0.00029726,2]
[392508344,1761588645770,-414.48,0.00029726,2]
[392508345,1761588645779,-150.0,0.00029726,2]
[392508346,1761588645789,-150.0,0.00029726,2]
[392508347,1761588645799,-333.53,0.00029726,2]
[392508348,1761588645808,-176.51,0.00029726,2]
[392508349,1761588645941,-150.0,0.00029726,2]
[392508350,1761588645963,-300.0,0.00029726,2]
[392508351,1761588645972,-300.0,0.00029726,2]
[392508352,1761588645982,-2403.72,0.00029726,2]
[392508353,1761588645991,-150.0,0.00029726,2]
[392508354,1761588646000,-150.0,0.00029726,2]
[392508355,1761588646010,-414.74,0.00029726,2]
[392508356,1761588646019,-337.12,0.00029726,2]
[392508357,1761588646028,-176.51,0.00029726,2]
[392508358,1761588646037,-150.0,0.00029726,2]
[392508359,1761588646046,-150.0,0.00029726,2]
[392508360,1761588646055,-379.0060862,0.00029726,2]
[392508361,1761588646082,-35.7339138,0.00029726,2]
[392508362,1761588646092,-176.51,0.00029726,2]
[392508364,1761588646101,-240.7560862,0.00029726,2]
[392508365,1761588646141,-250.0,0.00029726,2]
[392508374,1761589360164,150.0,0.00028371,120]
[392508375,1761589391007,461.76424935,0.00027566,120]
[392508376,1761589448167,195.0,0.00027754,120]
[392508377,1761589504243,193.0,0.00027502,120]
[392508378,1761589507886,57249.65264824,0.00015,2]
[392508379,1761589507912,4147.20611243,0.00015,2]
[392508380,1761589513418,546.64,0.00037114,50]
[392508382,1761589591545,1600.0,0.00028002,120]
[392508383,1761589592270,1600.0,0.00031502,120]
[392508394,1761589831818,-441.4786581,0.0002,2]
[392508395,1761589831828,-236.26594036,0.0002,2]
[392508396,1761589831838,-150.0,0.0002,2]
[392508397,1761589831848,-195.0,0.00022,2]
[392508398,1761589831857,-151.0,0.00023437,2]
[392508399,1761589831867,-151.0,0.00023469,2]
[392508400,1761589831876,-151.0,0.00023476,2]
[392508401,1761589831887,-151.0,0.00023483,2]
[392508402,1761589831896,-166.66666666,0.00024488,2]
[392508403,1761589831905,-250.0,0.00026427,2]
[392508404,1761589831915,-2500.0,0.00026937,2]
[392508405,1761589831924,-1200.0,0.0002705,2]
[392508406,1761589831934,-3760.4,0.00027051,2]
[392508407,1761589831943,-300.0,0.00027099,2]
[392508408,1761589831953,-250.0,0.00027175,2]
[392508409,1761589831963,-300.0,0.00027698,2]
[392508410,1761589831973,-300.0,0.00027698,2]
[392508411,1761589831982,-500.0,0.00027699,2]
[392508412,1761589831991,-500.0,0.00027699,2]
[392508413,1761589832001,-500.0,0.00027699,2]
[392508414,1761589832010,-267.65247,0.00027699,2]
[392508415,1761589832020,-1500.0,0.000277,2]
[392508416,1761589832032,-150.99,0.000277,2]
[392508417,1761589832042,-9999.99,0.000277,2]
[392508418,1761589832051,-5956.83,0.000277,2]
[392508419,1761589832061,-666.72878,0.00027983,2]
[392508420,1761589832071,-6579.83900032,0.00028,2]
[392508421,1761589832081,-582.20186977,0.00028,60]
[392508422,1761589832091,-5294.36,0.00028,2]
[392508423,1761589832100,-999.0,0.00028251,3]
[392508424,1761589832110,-476.74869043,0.00028259,2]
[392508425,1761589832121,-300.0,0.00028336,2]
[392508426,1761589832130,-150.0,0.00028371,2]
[392508427,1761589832140,-150.0,0.00028459,2]
[392508428,1761589832150,-312.74453516,0.00028713,5]
[392508429,1761589832159,-444.83673754,0.00028713,2]
[392508430,1761589832170,-796.67,0.00028755,30]
[392508431,1761589832180,-250.0,0.00028779,2]
[392508432,1761589832190,-515.0,0.00028854,2]
[392508434,1761589832200,-711.81,0.00028904,2]
[392508436,1761589832209,-150.0,0.00028904,2]
[392508438,1761589832220,-414.74,0.00028904,2]
[392508440,1761589832229,-176.51,0.00028904,2]
[392508442,1761589832238,-1202.57,0.00028904,2]
[392508444,1761589832248,-414.74,0.00028904,2]
[392508446,1761589832257,-150.0,0.00028904,2]
[392508448,1761589832266,-176.51,0.00028904,2]
[392508450,1761589832276,-548.12,0.00028904,2]
[392508451,1761589832285,-414.74,0.00028904,2]
[392508453,1761589832295,-1202.57,0.00028904,2]
[392508455,1761589832304,-195.31,0.00028904,2]
[392508457,1761589832313,-548.12,0.00028904,2]
[392508459,1761589832322,-548.12,0.00028904,2]
[392508461,1761589832331,-176.51,0.00028904,2]
[392508463,1761589832340,-414.74,0.00028904,2]
[392508465,1761589832349,-548.12,0.00028904,2]
[392508467,1761589832359,-175.63,0.00028904,2]
[392508469,1761589832367,-414.74,0.00028904,2]
[392508471,1761589832376,-414.74,0.00028904,2]
[392508473,1761589832386,-176.51,0.00028978,2]
[392508475,1761589832395,-1202.57,0.00028978,2]
[392508477,1761589832404,-150.0,0.00028978,2]
[392508479,1761589832414,-414.74,0.00028978,2]
[392508481,1761589832423,-1095.5,0.00028978,2]
[392508483,1761589832432,-151.0,0.0002901,2]
[392508485,1761589832441,-151.0,0.0002901,2]
[392508487,1761589832451,-151.0,0.0002901,2]
[392508489,1761589832460,-151.0,0.0002901,2]
[392508491,1761589832470,-151.0,0.0002901,2]
[392508492,1761589832478,-151.0,0.0002901,2]
[392508493,1761589832488,-151.0,0.0002901,2]
[392508494,1761589832497,-151.0,0.0002901,2]
[392508495,1761589832508,-151.0,0.0002901,2]
[392508496,1761589832518,-151.0,0.0002901,2]
[392508497,1761589832528,-151.0,0.0002901,2]
[392508498,1761589832537,-229.01773351,0.0002901,2]
[392508499,1761589832547,-4049.06,0.00029013,2]
[392508500,1761589832565,-1337.69,0.0002902,2]
[392508501,1761589832579,-761.99,0.0002902,2]
[392508502,1761589832588,-561.36,0.00029021,2]
[392508503,1761589832598,-1000.0,0.00029026,2]
[392508504,1761589832608,-315.949,0.00029026,21]
[392508505,1761589832624,-3724.83,0.00029027,2]
[392508506,1761589832634,-1015.0,0.00029077,7]
[392508507,1761589832643,-1145.0,0.0002931,2]
[392508508,1761589832652,-1680.0,0.00029371,2]
[392508509,1761589832661,-1000.0,0.0002942,2]
[392508510,1761589832671,-166.7,0.00029473,2]
[392508511,1761589832682,-8685.8867362,0.00029484,2]
[392508512,1761589832692,-4063.5368,0.00029484,2]
[392508513,1761589832701,-221.2,0.00029566,14]
[392508514,1761589832710,-500.0,0.00029583,2]
[392508515,1761589832720,-266.54001128,0.00029583,2]
[392508516,1761589832730,-381.26455835,0.00029583,2]
[392508517,1761589832739,-60981.09101193,0.00029584,2]
[392508518,1761589832753,-32123.89105057,0.00029584,2]
[392508519,1761589832764,-4870.1897439,0.00029584,2]
[392508520,1761589832773,-988.8729047,0.00029584,2]
[392508521,1761589832782,-1281.1777893,0.00029584,2]
[392508522,1761589832791,-701.8909791,0.00029584,2]
[392508523,1761589832914,-155.204976,0.00029584,31]
[392508524,1761589832923,-151.0,0.00029584,30]
[392508525,1761589832933,-428.86825188,0.00029584,2]
[392508526,1761589832942,-214.52409475,0.00029594,2]
[392508527,1761589832951,-1000.0,0.00029626,2]
[392508528,1761589832960,-2500.0,0.00029626,2]
[392508529,1761589832972,-150.0,0.00029688,4]
[392508530,1761589832981,-150.0,0.00029688,4]
[392508531,1761589832990,-150.0,0.00029688,4]
[392508532,1761589832999,-150.0,0.00029688,4]
[392508533,1761589833010,-150.0,0.00029688,4]
[392508534,1761589833020,-150.0,0.00029688,4]
[392508535,1761589833030,-150.0,0.00029688,4]
[392508536,1761589833040,-150.0,0.00029688,4]
[392508537,1761589833050,-150.0,0.00029688,4]
[392508538,1761589833059,-1000.0,0.000297,2]
[392508539,1761589833069,-8508.27126037,0.000297,2]
[392508540,1761589833102,-5169.50293963,0.000297,2]
[392508541,1761589833111,-22619.89594621,0.000297,2]
[392508542,1761589833123,-14868.64167494,0.000297,2]
[392508547,1761589838002,-1000.0,0.000297,2]
[392508556,1761589840395,-151.0,0.00029584,31]
[392508557,1761589840404,-427.7179492,0.000297,2]
[392508558,1761589840415,-5034.74442865,0.000297,2]
[392508559,1761589840425,-247.763455,0.000297,30]
[392508560,1761589840434,-151.0,0.000297,31]
[392508561,1761589840447,-5520.03103232,0.00029724,7]
[392508562,1761589840458,-151.0,0.00029726,31]
[392508563,1761589840467,-151.0,0.00029726,31]
[392508564,1761589840477,-190.455066,0.00029726,31]
[392508565,1761589840486,-414.74,0.00029726,2]
[392508566,1761589840497,-823.24,0.00029726,2]
[392508567,1761589840507,-756.1631392,0.00029752,3]
[392508568,1761589840521,-301.72,0.00029767,2]
[392508569,1761589840531,-168.1,0.00029767,2]
[392508570,1761589840541,-150.0,0.00029768,2]
[392508571,1761589840551,-248.65000836,0.00029773,5]
[392508572,1761589840561,-170.34,0.00029789,2]
[392508573,1761589840570,-170.34,0.00029789,2]
[392508574,1761589840581,-556.76283097,0.00029799,2]
[392508575,1761589840592,-151.0,0.00029799,31]
[392508576,1761589840602,-9542.9500395,0.00029799,2]
[392508577,1761589840625,-8637.6722475,0.00029799,2]
[392508578,1761589840674,-873.29775286,0.00029799,2]
[392508579,1761589840698,-311.98467859,0.00029799,2]
[392508597,1761589845918,-151.0,0.00029584,31]
[392508598,1761589845928,-151.0,0.00029584,31]
[392508599,1761589845938,-151.0,0.00029584,31]
[392508600,1761589845948,-151.0,0.00029584,31]
[392508601,1761589845958,-151.0,0.000297,31]
[392508602,1761589845968,-151.0,0.000297,31]
[392508603,1761589845977,-151.0,0.000297,31]
[392508604,1761589845987,-151.0,0.000297,31]
[392508605,1761589845997,-151.0,0.00029799,31]
[392508606,1761589846007,-151.0,0.00029799,31]
[392508607,1761589846017,-151.0,0.00029799,31]
[392508608,1761589846027,-84647.19798589,0.00029799,2]
[392508609,1761589846046,-253.52,0.00029799,2]
[392508610,1761589846057,-607.29,0.00029799,2]
[392508611,1761589846077,-4235.68464503,0.00029799,2]
[392508612,1761589846089,-2324.29556668,0.00029799,2]
[392508617,1761589951285,2325.05628204,0.00037114,60]
[392508624,1761590208553,185.94,0.00016712,2]
[392508627,1761590283412,3254.34,0.00027405,120]
[392508662,1761591031964,-151.0,0.00025449,2]
[392508663,1761591031975,-151.0,0.00025455,2]
[392508664,1761591031984,-151.0,0.0002546,2]
[392508665,1761591031995,-151.0,0.0002547,2]
[392508666,1761591032004,-178.92338346,0.00026,2]
[392508667,1761591032014,-18.87077073,0.00028041,2]
[392508668,1761591032026,-131.12922927,0.00028041,2]
[392508669,1761591032035,-1000.0,0.00028051,2]
[392508670,1761591032045,-182.71,0.00028079,2]
[392508671,1761591032054,-1200.0,0.00028156,2]
[392508672,1761591032064,-300.0,0.00028156,2]
[392508673,1761591032074,-3410.36,0.00028157,2]
[392508674,1761591032083,-200.0,0.00028214,2]
[392508675,1761591032093,-200.0,0.00028214,2]
[392508676,1761591032103,-431.11,0.00028221,2]
[392508677,1761591032114,-9999.99,0.00028221,2]
[392508678,1761591032123,-150.99,0.00028221,2]
[392508679,1761591032133,-500.0,0.00028226,2]
[392508680,1761591032142,-500.0,0.00028226,2]
[392508681,1761591032151,-500.0,0.00028226,2]
[392508682,1761591032160,-500.0,0.00028226,2]
[392508683,1761591032169,-500.0,0.00028226,2]
[392508684,1761591032179,-313.84958258,0.00028226,2]
[392508685,1761591032189,-500.0,0.00028226,2]
[392508686,1761591032198,-500.0,0.00028226,2]
[392508687,1761591032207,-500.0,0.00028226,2]
[392508688,1761591032216,-500.0,0.00028226,2]
[392508689,1761591032226,-7946.90322975,0.00028227,2]
[392508690,1761591032237,-2053.08677025,0.00028227,2]
[392508691,1761591032247,-476.74869043,0.00028227,2]
[392508692,1761591032256,-642.94,0.00028445,2]
[392508693,1761591032266,-785.91420295,0.00028462,2]
[392508694,1761591032276,-151.0,0.00028545,2]
[392508695,1761591032286,-151.0,0.00028545,2]
[392508696,1761591032294,-41.6947174,0.00028545,2]
[392508697,1761591032306,-109.3052826,0.00028545,2]
[392508698,1761591032316,-151.0,0.00028545,2]
[392508699,1761591032325,-151.0,0.00028545,2]
[392508700,1761591032335,-151.0,0.00028545,2]
[392508701,1761591032344,-19.77626782,0.00028545,2]
[392508703,1761591032355,-131.22373218,0.00028545,2]
[392508705,1761591032364,-151.0,0.00028545,2]
[392508707,1761591032374,-151.0,0.00028545,2]
[392508709,1761591032387,-35.01850615,0.00028545,2]
[392508710,1761591032399,-214.98149385,0.00028545,2]
[392508712,1761591032408,-151.0,0.00028545,2]
[392508713,1761591032419,-250.0,0.00028545,2]
[392508714,1761591032433,-151.0,0.00028545,2]
[392508715,1761591032442,-250.0,0.00028545,2]
[392508717,1761591032581,-250.0,0.00028545,2]
[392508718,1761591032592,-250.0,0.00028545,2]
[392508719,1761591032602,-250.0,0.00028545,2]
[392508720,1761591032611,-250.0,0.00028545,2]
[392508721,1761591032621,-151.0,0.00028545,2]
[392508722,1761591032630,-240.09849957,0.00028562,2]
[392508723,1761591032641,-400.0,0.00028562,2]
[392508724,1761591032653,-2489.95150043,0.00028562,2]
[392508725,1761591032663,-4361.7,0.00028562,2]
[392508726,1761591032672,-1485.32,0.00028577,2]
[392508727,1761591032683,-342.67,0.00028599,2]
[392508728,1761591032692,-785.91420296,0.00028599,2]
[392508729,1761591032701,-294.94,0.00028698,14]
[392508730,1761591032710,-392.17377572,0.00028698,2]
[392508731,1761591032719,-7388.44574706,0.00028699,2]
[392508732,1761591032730,-1116.68,0.00028699,2]
[392508733,1761591032741,-3137.17592943,0.00028699,2]
[392508734,1761591032825,-250.0,0.00028699,2]
[392508739,1761591037948,-319.92,0.00028562,2]
[392508740,1761591037959,-2898.80832351,0.00028699,2]
[392508741,1761591037968,-372.26,0.00028707,2]
[392508742,1761591037978,-8541.09,0.0002875,2]
[392508743,1761591037988,-7865.68,0.00028813,2]
[392508744,1761591037997,-168.0,0.00028864,2]
[392508745,1761591038008,-414.74,0.00028946,2]
[392508746,1761591038018,-294.94,0.00028972,14]
[392508747,1761591038028,-369.176,0.00029008,21]
[392508748,1761591038037,-401.45,0.00029095,2]
[392508749,1761591038047,-476.05,0.000292,2]
[392508750,1761591038057,-294.9676071,0.00029246,14]
[392508751,1761591038066,-1000.0,0.00029484,2]
[392508752,1761591038076,-777.64869677,0.00029541,2]
[392508753,1761591038086,-7817.29806258,0.00029699,2]
[392508754,1761591038095,-1000.0,0.00029699,2]
[392508755,1761591038105,-2500.0,0.00029699,2]
[392508756,1761591038115,-186.5780079,0.00029761,2]
[392508757,1761591038125,-616.88519085,0.00029761,2]
[392508758,1761591038135,-574.55836912,0.00029761,2]
[392508759,1761591038144,-14877.14890564,0.00029762,2]
[392508760,1761591038154,-10316.3400351,0.00029762,2]
[392508762,1761591038164,-11208.1124164,0.00029762,2]
[392508764,1761591038173,-1608.6022539,0.00029762,2]
[392508766,1761591038183,-1244.4992532,0.00029762,2]
[392508768,1761591038194,-21006.1673718,0.00029762,2]
[392508770,1761591038204,-372.26,0.00029783,2]
[392508772,1761591038214,-797.69,0.00029789,3]
[392508774,1761591038223,-500.0,0.00029799,7]
[392508776,1761591038233,-500.0,0.00029799,7]
[392508777,1761591038244,-500.0,0.00029799,7]
[392508779,1761591038254,-151.0,0.00029799,31]
[392508781,1761591038263,-151.0,0.00029799,31]
[392508783,1761591038273,-151.0,0.00029799,31]
[392508785,1761591038283,-151.0,0.00029799,31]
[392508787,1761591038293,-500.0,0.00029799,7]
[392508789,1761591038304,-154.69191,0.00029799,2]
[392508791,1761591038315,-636.82,0.00029799,7]
[392508793,1761591038325,-541.54066478,0.00029799,3]
[392508795,1761591038339,-695.45933522,0.00029799,3]
[392508798,1761591038348,-1237.0,0.00029799,3]
[392508800,1761591038358,-412.26683856,0.00029799,3]
[392508803,1761591038381,-824.73316144,0.00029799,3]
[392508806,1761591038395,-1237.0,0.00029799,3]
[392508808,1761591038406,-1237.0,0.00029799,3]
[392508810,1761591038416,-1237.0,0.00029799,3]
[392508812,1761591038427,-1237.0,0.00029799,3]
[392508814,1761591038436,-1237.0,0.00029799,3]
[392508816,1761591038448,-1237.0,0.00029799,3]
[392508818,1761591038459,-1237.0,0.00029799,3]
[392508820,1761591038472,-1237.0,0.00029799,3]
[392508822,1761591038482,-1201.0,0.00029799,3]
[392508824,1761591038492,-151.0,0.00029799,31]
[392508826,1761591038502,-17196.34581681,0.00029799,2]
[392508828,1761591038514,-10808.74471395,0.00029799,2]
[392508832,1761591038562,-13825.49279382,0.00029799,2]
[392508965,1761591040239,-151.0,0.00029799,31]
[392508966,1761591040248,-8295.35332308,0.00029799,2]
[392508969,1761591040275,-793.52244319,0.00029799,2]
[392508971,1761591040286,-404.95500358,0.00029799,2]
[392508975,1761591040336,-494.84397768,0.00029799,2]
[392508980,1761591040400,-8348.60048548,0.00029799,2]
[392509229,1761591043079,-151.0,0.00025482,2]
[392509231,1761591043088,-151.0,0.00029799,31]
[392509233,1761591043098,-198.0,0.00029799,31]
[392509238,1761591043134,-98.829704,0.00029799,31]
[392509240,1761591043143,-979.98448767,0.00029799,2]
[392509524,1761591045974,-18202.85530612,0.00029799,2]
[392509560,1761591046288,-985.57067018,0.00029799,2]
[392509567,1761591046344,-1317.73216239,0.00029799,2]
[392509569,1761591046353,-183.3,0.000298,21]
[392509571,1761591046362,-168.0,0.00029819,2]
[392509573,1761591046371,-548.12,0.00029842,2]
[392509575,1761591046381,-548.12,0.00029842,2]
[392509577,1761591046396,-548.12,0.00029842,2]
[392509579,1761591046409,-548.12,0.00029842,2]
[392509581,1761591046419,-548.12,0.00029842,2]
[392509583,1761591046430,-548.12,0.00029842,2]
[392509586,1761591046441,-500.0,0.00029851,15]
[392509587,1761591046454,-1145.0,0.00029866,7]
[392509590,1761591046467,-170.36,0.00029889,2]
[392509592,1761591046478,-163.0664663,0.0002989,2]
[392510892,1761591345037,21664.0,0.00037113,50]
[392510894,1761591445961,1054.96,0.00014281,2]
[392510895,1761591446193,1054.96,0.00015033,2]
[392510896,1761591446411,1054.96,0.00015784,2]
[392510897,1761591446655,1054.96,0.00016536,2]
[392510898,1761591446864,1054.96,0.00017288,2]
[392510899,1761591447085,1054.96,0.00018039,2]
[392510900,1761591447318,1054.96,0.00018791,2]
[392510901,1761591462094,-325.17132799,0.00019543,2]
[392510908,1761591717172,-325.11,0.00019543,2]
[392510909,1761592148145,-404.67867201,0.00019543,2]
[392510910,1761592148168,-150.0,0.00019543,2]
[392510911,1761592148190,-1054.96,0.00020294,2]
[392510912,1761592148212,-1054.96,0.00021046,2]
[392510913,1761592148237,-1054.96,0.00021798,2]
[392510914,1761592148263,-151.0,0.00022273,2]
[392510915,1761592148283,-151.0,0.00022287,2]
[392510916,1761592148307,-151.0,0.00022299,2]
[392510917,1761592148329,-151.0,0.00022314,2]
[392510918,1761592148353,-179.32545586,0.00022549,2]
[392510920,1761592232120,-151.0,0.00022456,2]
[392510921,1761592232130,-151.0,0.00022542,2]
[392510922,1761592232139,-875.63454414,0.00022549,2]
[392510923,1761592232148,-151.0,0.00022613,2]
[392510924,1761592232158,-151.0,0.00022666,2]
[392510925,1761592232167,-1054.96,0.00023301,2]